[Event "Titled Tuesday Blitz July 25 Early 2023"]
[White "Oro, Faustino"]
[Black "Manelyuk, Daniil"]
[WhiteFideId "20000197"]
[BlackFideId "44173920"]
[WhiteElo "2852"]
[BlackElo "2657"]
[Result "1-0"]
[Round "3"]
[TimeControl "180+2"]
[Date "2023.07.25"]
[WhiteClock "0:00:06"]
[BlackClock "0:00:04"]
[Board "37"]

1. e4 {[%clk 0:03:00]}  c6 {[%clk 0:02:59]} 2. Nf3 {[%clk 0:02:57]}  d5 {[%clk 0:02:59]} 3. Nc3 {[%clk 0:02:58]}  dxe4 {[%clk 0:02:59]} 4. Nxe4 {[%clk 0:02:58]}  Nf6 {[%clk 0:02:59]} 5. Qe2 {[%clk 0:02:58]}  Nxe4 {[%clk 0:03:00]} 6. Qxe4 {[%clk 0:02:59]}  Qd5 {[%clk 0:03:00]} 7. Qh4 {[%clk 0:02:46]}  Qe6+ {[%clk 0:02:56]} 8. Be2 {[%clk 0:02:44]}  Qg4 {[%clk 0:02:56]} 9. Qg3 {[%clk 0:02:43]}  Qxg3 {[%clk 0:02:56]} 10. hxg3 {[%clk 0:02:44]}  Nd7 {[%clk 0:02:56]} 11. d4 {[%clk 0:02:37]}  Nf6 {[%clk 0:02:55]} 12. Be3 {[%clk 0:02:30]}  Bf5 {[%clk 0:02:54]} 13. c3 {[%clk 0:02:29]}  e6 {[%clk 0:02:54]} 14. Ne5 {[%clk 0:02:25]}  h6 {[%clk 0:02:48]} 15. g4 {[%clk 0:02:20]}  Bh7 {[%clk 0:02:47]} 16. g5 {[%clk 0:02:19]}  hxg5 {[%clk 0:02:47]} 17. Bxg5 {[%clk 0:02:19]}  Bd6 {[%clk 0:02:45]} 18. O-O-O {[%clk 0:02:13]}  Ke7 {[%clk 0:02:41]} 19. g4 {[%clk 0:01:51]}  c5 {[%clk 0:02:28]} 20. Nc4 {[%clk 0:01:45]}  Bc7 {[%clk 0:01:53]} 21. dxc5 {[%clk 0:01:41]}  Be4 {[%clk 0:01:52]} 22. f3 {[%clk 0:01:30]}  Bd5 {[%clk 0:01:52]} 23. Ne3 {[%clk 0:01:20]}  Bc6 {[%clk 0:01:52]} 24. b4 {[%clk 0:01:14]}  a6 {[%clk 0:01:51]} 25. Kb2 {[%clk 0:01:04]}  Ba4 {[%clk 0:01:34]} 26. Rde1 {[%clk 0:00:53]}  Rad8 {[%clk 0:01:27]} 27. Nc4 {[%clk 0:00:53]}  Bb5 {[%clk 0:01:27]} 28. Kb3 {[%clk 0:00:51]}  Rxh1 {[%clk 0:01:22]} 29. Rxh1 {[%clk 0:00:51]}  Rd5 {[%clk 0:01:22]} 30. Be3 {[%clk 0:00:48]}  Rd8 {[%clk 0:01:11]} 31. a4 {[%clk 0:00:47]}  Bxc4+ {[%clk 0:01:11]} 32. Bxc4 {[%clk 0:00:45]}  Nd5 {[%clk 0:01:11]} 33. Bd4 {[%clk 0:00:43]}  e5 {[%clk 0:01:08]} 34. Bf2 {[%clk 0:00:42]}  Nf4 {[%clk 0:01:07]} 35. Kc2 {[%clk 0:00:34]}  Kf6 {[%clk 0:00:59]} 36. Bh4+ {[%clk 0:00:34]}  g5 {[%clk 0:00:59]} 37. Bf2 {[%clk 0:00:34]}  Ne6 {[%clk 0:00:50]} 38. Be3 {[%clk 0:00:31]}  e4 {[%clk 0:00:48]} 39. fxe4 {[%clk 0:00:29]}  Bf4 {[%clk 0:00:48]} 40. Bxe6 {[%clk 0:00:29]}  fxe6 {[%clk 0:00:47]} 41. Bxf4 {[%clk 0:00:20]}  gxf4 {[%clk 0:00:48]} 42. Rd1 {[%clk 0:00:16]}  Rf8 {[%clk 0:00:36]} 43. Rd7 {[%clk 0:00:14]}  Ke5 {[%clk 0:00:36]} 44. Kd2 {[%clk 0:00:14]}  Kxe4 {[%clk 0:00:36]} 45. Ke2 {[%clk 0:00:13]}  e5 {[%clk 0:00:33]} 46. Rxb7 {[%clk 0:00:12]}  Rh8 {[%clk 0:00:33]} 47. Re7 {[%clk 0:00:08]}  Rh2+ {[%clk 0:00:32]} 48. Ke1 {[%clk 0:00:09]}  f3 {[%clk 0:00:31]} 49. c6 {[%clk 0:00:08]}  f2+ {[%clk 0:00:17]} 50. Ke2 {[%clk 0:00:06]}  Rh3 {[%clk 0:00:08]} 51. Kxf2 {[%clk 0:00:03]}  Rxc3 {[%clk 0:00:08]} 52. b5 {[%clk 0:00:04]}  axb5 {[%clk 0:00:08]} 53. axb5 {[%clk 0:00:05]}  Kd5 {[%clk 0:00:08]} 54. c7 {[%clk 0:00:05]}  Kd6 {[%clk 0:00:08]} 55. Rf7 {[%clk 0:00:05]}  e4 {[%clk 0:00:06]} 56. b6 {[%clk 0:00:05]}  Ke6 {[%clk 0:00:06]} 57. Rg7 {[%clk 0:00:04]}  Kf6 {[%clk 0:00:06]} 58. Rh7 {[%clk 0:00:03]}  Kg6 {[%clk 0:00:06]} 59. Rd7 {[%clk 0:00:04]}  Kg5 {[%clk 0:00:06]} 60. b7 {[%clk 0:00:04]}  Kf4 {[%clk 0:00:05]} 61. Rf7+ {[%clk 0:00:05]}  Kxg4 {[%clk 0:00:05]} 62. c8=Q+ {[%clk 0:00:05]}  Rxc8 {[%clk 0:00:04]} 63. bxc8=Q+ {[%clk 0:00:06]} 1-0


[Site "https://www.chess.com"]

[Event "Titled Tuesday Blitz July 25 Early 2023"]
[White "Nurgaliyeva, Zarina"]
[Black "Kezin, Roman"]
[WhiteFideId "13730096"]
[BlackFideId "24124621"]
[WhiteElo "2612"]
[BlackElo "2830"]
[Result "0-1"]
[Round "3"]
[TimeControl "180+2"]
[Date "2023.07.25"]
[WhiteClock "0:01:03"]
[BlackClock "0:01:24"]
[Board "40"]

1. e4 {[%clk 0:02:59]}  g6 {[%clk 0:02:56]} 2. d4 {[%clk 0:02:56]}  Nf6 {[%clk 0:02:56]} 3. Nc3 {[%clk 0:02:51]}  d6 {[%clk 0:02:53]} 4. Bg5 {[%clk 0:02:47]}  Bg7 {[%clk 0:02:47]} 5. Qd2 {[%clk 0:02:47]}  h6 {[%clk 0:02:36]} 6. Bf4 {[%clk 0:02:47]}  Nc6 {[%clk 0:02:29]} 7. h3 {[%clk 0:02:30]}  Nxd4 {[%clk 0:02:12]} 8. Qxd4 {[%clk 0:02:23]}  e5 {[%clk 0:02:12]} 9. Bxe5 {[%clk 0:02:18]}  dxe5 {[%clk 0:02:13]} 10. Qxe5+ {[%clk 0:02:13]}  Be6 {[%clk 0:02:12]} 11. Qb5+ {[%clk 0:02:10]}  c6 {[%clk 0:02:10]} 12. Qd3 {[%clk 0:02:10]}  Qa5 {[%clk 0:02:09]} 13. Ne2 {[%clk 0:01:50]}  O-O {[%clk 0:02:04]} 14. g4 {[%clk 0:01:32]}  Rad8 {[%clk 0:02:02]} 15. Qe3 {[%clk 0:01:30]}  Nxe4 {[%clk 0:02:01]} 16. Bg2 {[%clk 0:01:25]}  Nxc3 {[%clk 0:01:55]} 17. Nxc3 {[%clk 0:01:25]}  Bc4 {[%clk 0:01:49]} 18. Rd1 {[%clk 0:01:09]}  Rde8 {[%clk 0:01:42]} 19. Be4 {[%clk 0:01:08]}  f5 {[%clk 0:01:32]} 20. gxf5 {[%clk 0:01:09]}  gxf5 {[%clk 0:01:31]} 21. Rg1 {[%clk 0:01:06]}  Rxe4 {[%clk 0:01:28]} 22. Rd7 {[%clk 0:01:02]}  Rxe3+ {[%clk 0:01:25]} 23. fxe3 {[%clk 0:01:03]}  Rf7 {[%clk 0:01:24]} 0-1


[Site "https://www.chess.com"]

[Event "Titled Tuesday Blitz July 25 Early 2023"]
[White "Bachmann, Axel"]
[Black "ArtemDyachuk"]
[WhiteFideId "3700488"]
[WhiteElo "2830"]
[BlackElo "2590"]
[Result "0-1"]
[Round "3"]
[TimeControl "180+2"]
[Date "2023.07.25"]
[WhiteClock "0:00:06"]
[BlackClock "0:00:04"]
[Board "41"]

1. e4 {[%clk 0:03:00]}  c6 {[%clk 0:02:59]} 2. d4 {[%clk 0:02:59]}  d5 {[%clk 0:02:59]} 3. exd5 {[%clk 0:03:00]}  cxd5 {[%clk 0:02:59]} 4. Bd3 {[%clk 0:03:00]}  Nc6 {[%clk 0:02:58]} 5. c3 {[%clk 0:03:00]}  Qc7 {[%clk 0:02:58]} 6. Ne2 {[%clk 0:02:59]}  e6 {[%clk 0:02:55]} 7. Bf4 {[%clk 0:02:56]}  Bd6 {[%clk 0:02:54]} 8. Bxd6 {[%clk 0:02:57]}  Qxd6 {[%clk 0:02:54]} 9. O-O {[%clk 0:02:55]}  Nge7 {[%clk 0:02:54]} 10. Nd2 {[%clk 0:02:52]}  Bd7 {[%clk 0:02:53]} 11. f4 {[%clk 0:02:51]}  O-O-O {[%clk 0:02:53]} 12. Nf3 {[%clk 0:02:51]}  f6 {[%clk 0:02:48]} 13. b4 {[%clk 0:02:44]}  Ng6 {[%clk 0:02:35]} 14. Qd2 {[%clk 0:02:33]}  Nce7 {[%clk 0:02:33]} 15. b5 {[%clk 0:02:23]}  Kb8 {[%clk 0:02:32]} 16. a4 {[%clk 0:02:19]}  Rc8 {[%clk 0:02:23]} 17. Rfc1 {[%clk 0:02:16]}  Rc7 {[%clk 0:02:10]} 18. c4 {[%clk 0:02:17]}  dxc4 {[%clk 0:02:09]} 19. Rxc4 {[%clk 0:02:18]}  Rhc8 {[%clk 0:02:07]} 20. Rxc7 {[%clk 0:02:18]}  Rxc7 {[%clk 0:02:06]} 21. h3 {[%clk 0:01:58]}  Nd5 {[%clk 0:02:05]} 22. Bxg6 {[%clk 0:01:57]}  hxg6 {[%clk 0:02:04]} 23. Rc1 {[%clk 0:01:48]}  Rxc1+ {[%clk 0:01:51]} 24. Qxc1 {[%clk 0:01:49]}  Qb4 {[%clk 0:01:34]} 25. Qc2 {[%clk 0:01:48]}  Be8 {[%clk 0:01:33]} 26. Kf2 {[%clk 0:01:46]}  Nb6 {[%clk 0:01:28]} 27. Qe4 {[%clk 0:00:41]}  Qxa4 {[%clk 0:01:19]} 28. Qxe6 {[%clk 0:00:40]}  Qxb5 {[%clk 0:01:17]} 29. Qd6+ {[%clk 0:00:34]}  Kc8 {[%clk 0:01:16]} 30. Qf8 {[%clk 0:00:28]}  Qd7 {[%clk 0:01:06]} 31. Nc3 {[%clk 0:00:28]}  Qf7 {[%clk 0:01:03]} 32. Qa3 {[%clk 0:00:28]}  a6 {[%clk 0:00:43]} 33. Ne4 {[%clk 0:00:27]}  Kb8 {[%clk 0:00:37]} 34. Qd6+ {[%clk 0:00:25]}  Ka7 {[%clk 0:00:31]} 35. Qc5 {[%clk 0:00:24]}  Qd5 {[%clk 0:00:23]} 36. Nd6 {[%clk 0:00:20]}  Qc6 {[%clk 0:00:12]} 37. Nd2 {[%clk 0:00:14]}  Bd7 {[%clk 0:00:11]} 38. Qb4 {[%clk 0:00:12]}  Nd5 {[%clk 0:00:09]} 39. Qa3 {[%clk 0:00:10]}  Nxf4 {[%clk 0:00:08]} 40. Nf3 {[%clk 0:00:05]}  Qc2+ {[%clk 0:00:06]} 41. Kg3 {[%clk 0:00:04]}  Ne2+ {[%clk 0:00:03]} 42. Kh2 {[%clk 0:00:03]}  Qc7 {[%clk 0:00:03]} 43. Qc5+ {[%clk 0:00:02]}  Qxc5 {[%clk 0:00:02]} 44. dxc5 {[%clk 0:00:03]}  Bc6 {[%clk 0:00:03]} 45. Nd4 {[%clk 0:00:03]}  Nxd4 {[%clk 0:00:02]} 46. Nc8+ {[%clk 0:00:03]}  Kb8 {[%clk 0:00:03]} 47. Nd6 {[%clk 0:00:04]}  a5 {[%clk 0:00:03]} 48. Nc4 {[%clk 0:00:04]}  a4 {[%clk 0:00:04]} 49. Kg3 {[%clk 0:00:05]}  Nc2 {[%clk 0:00:04]} 50. Kf4 {[%clk 0:00:06]}  a3 {[%clk 0:00:04]} 0-1


[Site "https://www.chess.com"]

[Event "Titled Tuesday Blitz July 25 Early 2023"]
[White "Cordova, Emilio"]
[Black "vishwa_vijeta"]
[WhiteFideId "3801497"]
[WhiteElo "2822"]
[BlackElo "2558"]
[Result "1-0"]
[Round "3"]
[TimeControl "180+2"]
[Date "2023.07.25"]
[WhiteClock "0:02:24"]
[BlackClock "0:00:49"]
[Board "44"]

1. Nf3 {[%clk 0:03:00]}  c5 {[%clk 0:02:59]} 2. e3 {[%clk 0:03:01]}  d5 {[%clk 0:02:49]} 3. c4 {[%clk 0:02:59]}  d4 {[%clk 0:02:39]} 4. exd4 {[%clk 0:02:59]}  cxd4 {[%clk 0:02:40]} 5. d3 {[%clk 0:02:58]}  Nc6 {[%clk 0:02:38]} 6. g3 {[%clk 0:02:58]}  e6 {[%clk 0:02:38]} 7. Bg2 {[%clk 0:02:58]}  Nf6 {[%clk 0:02:39]} 8. O-O {[%clk 0:02:59]}  Be7 {[%clk 0:02:35]} 9. Re1 {[%clk 0:02:59]}  O-O {[%clk 0:02:35]} 10. a3 {[%clk 0:02:55]}  a5 {[%clk 0:02:35]} 11. Bg5 {[%clk 0:02:51]}  Nd7 {[%clk 0:02:27]} 12. Bxe7 {[%clk 0:02:51]}  Qxe7 {[%clk 0:02:28]} 13. Nbd2 {[%clk 0:02:51]}  Nc5 {[%clk 0:02:27]} 14. Nb3 {[%clk 0:02:50]}  Rd8 {[%clk 0:02:16]} 15. Ne5 {[%clk 0:02:48]}  Nxb3 {[%clk 0:01:34]} 16. Qxb3 {[%clk 0:02:46]}  Qc7 {[%clk 0:01:30]} 17. Qb5 {[%clk 0:02:39]}  Nxe5 {[%clk 0:01:23]} 18. Qxe5 {[%clk 0:02:38]}  Qb6 {[%clk 0:01:23]} 19. b4 {[%clk 0:02:32]}  axb4 {[%clk 0:01:12]} 20. axb4 {[%clk 0:02:33]}  Rxa1 {[%clk 0:01:12]} 21. Rxa1 {[%clk 0:02:34]}  f6 {[%clk 0:01:01]} 22. Qc5 {[%clk 0:02:34]}  Qxc5 {[%clk 0:00:57]} 23. bxc5 {[%clk 0:02:35]}  e5 {[%clk 0:00:50]} 24. Ra8 {[%clk 0:02:32]}  Rf8 {[%clk 0:00:50]} 25. Bd5+ {[%clk 0:02:25]}  Kh8 {[%clk 0:00:49]} 26. Bxb7 {[%clk 0:02:24]} 1-0


[Site "https://www.chess.com"]

[Event "Titled Tuesday Blitz July 25 Early 2023"]
[White "Plotkin, Mark"]
[Black "Garakov, Mikhael"]
[WhiteFideId "2611651"]
[BlackFideId "4169034"]
[WhiteElo "2816"]
[BlackElo "2538"]
[Result "1-0"]
[Round "3"]
[TimeControl "180+2"]
[Date "2023.07.25"]
[WhiteClock "0:01:43"]
[BlackClock "0:00:16"]
[Board "46"]

1. c4 {[%clk 0:03:00]}  Nf6 {[%clk 0:02:59]} 2. Nf3 {[%clk 0:02:58]}  c5 {[%clk 0:02:58]} 3. Nc3 {[%clk 0:02:55]}  b6 {[%clk 0:02:57]} 4. d4 {[%clk 0:02:53]}  cxd4 {[%clk 0:02:57]} 5. Nxd4 {[%clk 0:02:54]}  Bb7 {[%clk 0:02:58]} 6. f3 {[%clk 0:02:51]}  d6 {[%clk 0:02:57]} 7. e4 {[%clk 0:02:50]}  e6 {[%clk 0:02:57]} 8. Be3 {[%clk 0:02:47]}  Be7 {[%clk 0:02:57]} 9. Be2 {[%clk 0:02:40]}  O-O {[%clk 0:02:57]} 10. O-O {[%clk 0:02:40]}  a6 {[%clk 0:02:58]} 11. Qd2 {[%clk 0:02:40]}  Nbd7 {[%clk 0:02:55]} 12. Rfd1 {[%clk 0:02:39]}  Rc8 {[%clk 0:02:55]} 13. Rac1 {[%clk 0:02:38]}  Qc7 {[%clk 0:02:55]} 14. Qe1 {[%clk 0:02:38]}  Rfe8 {[%clk 0:02:49]} 15. g4 {[%clk 0:02:35]}  h6 {[%clk 0:02:27]} 16. h4 {[%clk 0:02:29]}  Nh7 {[%clk 0:02:24]} 17. Qg3 {[%clk 0:02:26]}  Qd8 {[%clk 0:01:28]} 18. h5 {[%clk 0:02:14]}  Ne5 {[%clk 0:01:03]} 19. b3 {[%clk 0:02:13]}  Nc6 {[%clk 0:01:02]} 20. Na4 {[%clk 0:02:06]}  Rb8 {[%clk 0:00:27]} 21. Qf2 {[%clk 0:02:00]}  Bh4 {[%clk 0:00:26]} 22. Qh2 {[%clk 0:01:59]}  Nxd4 {[%clk 0:00:25]} 23. Rxd4 {[%clk 0:01:58]}  Bc6 {[%clk 0:00:16]} 24. Rxd6 {[%clk 0:01:43]} 1-0


[Site "https://www.chess.com"]

[Event "Titled Tuesday Blitz July 25 Early 2023"]
[White "Ashraf, Artin"]
[Black "Tokman, Ariel"]
[WhiteFideId "22514805"]
[BlackFideId "117420"]
[WhiteElo "2802"]
[BlackElo "2529"]
[Result "1-0"]
[Round "3"]
[TimeControl "180+2"]
[Date "2023.07.25"]
[WhiteClock "0:00:03"]
[BlackClock "0:00:01"]
[Board "47"]

1. Nf3 {[%clk 0:03:00]}  d5 {[%clk 0:02:59]} 2. c4 {[%clk 0:02:59]}  c6 {[%clk 0:03:00]} 3. e3 {[%clk 0:02:57]}  Nf6 {[%clk 0:03:00]} 4. Nc3 {[%clk 0:02:55]}  Bg4 {[%clk 0:02:57]} 5. Qb3 {[%clk 0:02:47]}  Qb6 {[%clk 0:02:37]} 6. Qxb6 {[%clk 0:02:40]}  axb6 {[%clk 0:02:38]} 7. cxd5 {[%clk 0:02:41]}  Bxf3 {[%clk 0:02:36]} 8. gxf3 {[%clk 0:02:40]}  Nxd5 {[%clk 0:02:35]} 9. Nxd5 {[%clk 0:02:21]}  cxd5 {[%clk 0:02:36]} 10. d4 {[%clk 0:02:21]}  e6 {[%clk 0:02:34]} 11. Bd2 {[%clk 0:02:22]}  Nc6 {[%clk 0:02:32]} 12. Bb5 {[%clk 0:02:21]}  Bd6 {[%clk 0:02:27]} 13. Ke2 {[%clk 0:02:21]}  Ke7 {[%clk 0:02:27]} 14. h4 {[%clk 0:02:20]}  h5 {[%clk 0:02:27]} 15. a3 {[%clk 0:02:15]}  Na5 {[%clk 0:02:20]} 16. Bc3 {[%clk 0:02:08]}  Rhc8 {[%clk 0:02:16]} 17. Kd3 {[%clk 0:02:07]}  Nc4 {[%clk 0:02:04]} 18. e4 {[%clk 0:02:03]}  g6 {[%clk 0:01:16]} 19. e5 {[%clk 0:01:27]}  Bc7 {[%clk 0:01:14]} 20. b3 {[%clk 0:01:23]}  Na5 {[%clk 0:01:11]} 21. Bb4+ {[%clk 0:01:10]}  Kd8 {[%clk 0:01:10]} 22. Bd2 {[%clk 0:01:10]}  Ke7 {[%clk 0:01:05]} 23. Rab1 {[%clk 0:01:07]}  Nc6 {[%clk 0:00:53]} 24. Ke3 {[%clk 0:00:58]}  Kd7 {[%clk 0:00:51]} 25. a4 {[%clk 0:00:51]}  Bd8 {[%clk 0:00:52]} 26. Rbc1 {[%clk 0:00:46]}  Be7 {[%clk 0:00:52]} 27. Kd3 {[%clk 0:00:45]}  Kd8 {[%clk 0:00:47]} 28. Ke3 {[%clk 0:00:39]}  Na5 {[%clk 0:00:44]} 29. Rb1 {[%clk 0:00:36]}  Rc2 {[%clk 0:00:35]} 30. Kd3 {[%clk 0:00:32]}  Rac8 {[%clk 0:00:34]} 31. b4 {[%clk 0:00:22]}  Rxd2+ {[%clk 0:00:16]} 32. Kxd2 {[%clk 0:00:23]}  Nc4+ {[%clk 0:00:15]} 33. Bxc4 {[%clk 0:00:17]}  Rxc4 {[%clk 0:00:14]} 34. Kd3 {[%clk 0:00:17]}  Bxb4 {[%clk 0:00:09]} 35. Rhc1 {[%clk 0:00:11]}  Rxc1 {[%clk 0:00:09]} 36. Rxc1 {[%clk 0:00:12]}  Be7 {[%clk 0:00:10]} 37. Rh1 {[%clk 0:00:12]}  Kc7 {[%clk 0:00:09]} 38. f4 {[%clk 0:00:12]}  Bb4 {[%clk 0:00:09]} 39. Rg1 {[%clk 0:00:10]}  Be7 {[%clk 0:00:09]} 40. f5 {[%clk 0:00:08]}  gxf5 {[%clk 0:00:02]} 41. Rg7 {[%clk 0:00:07]}  Bxh4 {[%clk 0:00:03]} 42. Rxf7+ {[%clk 0:00:07]}  Kc6 {[%clk 0:00:03]} 43. Rh7 {[%clk 0:00:06]}  Bxf2 {[%clk 0:00:03]} 44. Rxh5 {[%clk 0:00:05]}  Be1 {[%clk 0:00:03]} 45. Rh7 {[%clk 0:00:05]}  Bb4 {[%clk 0:00:02]} 46. Ke3 {[%clk 0:00:05]}  Ba3 {[%clk 0:00:02]} 47. Kf3 {[%clk 0:00:04]}  Bb4 {[%clk 0:00:03]} 48. Kg3 {[%clk 0:00:04]}  Bc3 {[%clk 0:00:03]} 49. Re7 {[%clk 0:00:03]}  Bxd4 {[%clk 0:00:03]} 50. Rxe6+ {[%clk 0:00:04]}  Kc5 {[%clk 0:00:04]} 51. Kf4 {[%clk 0:00:04]}  Bb2 {[%clk 0:00:01]} 52. Kxf5 {[%clk 0:00:03]}  b5 {[%clk 0:00:02]} 53. axb5 {[%clk 0:00:02]}  Kxb5 {[%clk 0:00:03]} 54. Rd6 {[%clk 0:00:03]}  Kc4 {[%clk 0:00:03]} 55. e6 {[%clk 0:00:02]}  Ba3 {[%clk 0:00:03]} 56. e7 {[%clk 0:00:01]}  Bxd6 {[%clk 0:00:03]} 57. e8=Q {[%clk 0:00:02]}  Bc5 {[%clk 0:00:02]} 58. Qd7 {[%clk 0:00:02]}  b5 {[%clk 0:00:02]} 59. Qe6 {[%clk 0:00:02]}  b4 {[%clk 0:00:03]} 60. Qe2+ {[%clk 0:00:02]}  Kc3 {[%clk 0:00:03]} 61. Qd1 {[%clk 0:00:03]}  d4 {[%clk 0:00:03]} 62. Ke4 {[%clk 0:00:03]}  b3 {[%clk 0:00:03]} 63. Qc1+ {[%clk 0:00:03]}  Kb4 {[%clk 0:00:02]} 64. Kd3 {[%clk 0:00:04]}  Bb6 {[%clk 0:00:02]} 65. Qb2 {[%clk 0:00:03]}  Bc5 {[%clk 0:00:02]} 66. Qb1 {[%clk 0:00:03]}  Bb6 {[%clk 0:00:02]} 67. Qa1 {[%clk 0:00:04]}  Bc5 {[%clk 0:00:02]} 68. Qa6 {[%clk 0:00:04]}  b2 {[%clk 0:00:02]} 69. Kc2 {[%clk 0:00:04]}  d3+ {[%clk 0:00:01]} 70. Qxd3 {[%clk 0:00:03]} 1-0


[Site "https://www.chess.com"]

[Event "Titled Tuesday Blitz July 25 Early 2023"]
[White "Mindhunter08"]
[Black "Hambleton, Aman"]
[BlackFideId "2606577"]
[WhiteElo "2528"]
[BlackElo "2801"]
[Result "0-1"]
[Round "3"]
[TimeControl "180+2"]
[Date "2023.07.25"]
[WhiteClock "0:00:10"]
[BlackClock "0:00:08"]
[Board "48"]

1. e4 {[%clk 0:03:00]}  b6 {[%clk 0:02:58]} 2. d4 {[%clk 0:02:59]}  Bb7 {[%clk 0:02:58]} 3. Bd3 {[%clk 0:02:55]}  e6 {[%clk 0:02:58]} 4. Nf3 {[%clk 0:02:51]}  d5 {[%clk 0:02:55]} 5. e5 {[%clk 0:02:50]}  Ba6 {[%clk 0:02:55]} 6. Bxa6 {[%clk 0:02:39]}  Nxa6 {[%clk 0:02:56]} 7. c4 {[%clk 0:02:39]}  Nb4 {[%clk 0:02:51]} 8. a3 {[%clk 0:02:23]}  Nc6 {[%clk 0:02:50]} 9. Qa4 {[%clk 0:02:04]}  Ne7 {[%clk 0:01:54]} 10. Nc3 {[%clk 0:01:56]}  Qd7 {[%clk 0:01:17]} 11. O-O {[%clk 0:01:53]}  dxc4 {[%clk 0:00:55]} 12. Qxc4 {[%clk 0:01:47]}  Na5 {[%clk 0:00:53]} 13. Qa2 {[%clk 0:01:36]}  Nd5 {[%clk 0:00:34]} 14. Ne4 {[%clk 0:01:28]}  h6 {[%clk 0:00:26]} 15. Bd2 {[%clk 0:01:28]}  Nc6 {[%clk 0:00:23]} 16. Rfd1 {[%clk 0:01:24]}  Be7 {[%clk 0:00:22]} 17. Rac1 {[%clk 0:01:23]}  Bd8 {[%clk 0:00:20]} 18. Qc4 {[%clk 0:01:15]}  Nce7 {[%clk 0:00:19]} 19. b4 {[%clk 0:00:47]}  a6 {[%clk 0:00:12]} 20. Ne1 {[%clk 0:00:27]}  Qb5 {[%clk 0:00:08]} 21. Qb3 {[%clk 0:00:22]}  Qe2 {[%clk 0:00:07]} 22. Ng3 {[%clk 0:00:18]}  Qg4 {[%clk 0:00:04]} 23. Nc2 {[%clk 0:00:14]}  O-O {[%clk 0:00:03]} 24. h3 {[%clk 0:00:14]}  Qg6 {[%clk 0:00:03]} 25. Qf3 {[%clk 0:00:13]}  Rb8 {[%clk 0:00:02]} 26. Nf1 {[%clk 0:00:10]}  Nf5 {[%clk 0:00:01]} 27. Nce3 {[%clk 0:00:08]}  Nxd4 {[%clk 0:00:02]} 28. Qg4 {[%clk 0:00:05]}  Qxg4 {[%clk 0:00:02]} 29. Nxg4 {[%clk 0:00:06]}  Ne2+ {[%clk 0:00:02]} 30. Kh2 {[%clk 0:00:06]}  Nxc1 {[%clk 0:00:03]} 31. Rxc1 {[%clk 0:00:06]}  Be7 {[%clk 0:00:04]} 32. Nge3 {[%clk 0:00:06]}  Nxe3 {[%clk 0:00:04]} 33. Nxe3 {[%clk 0:00:07]}  c5 {[%clk 0:00:04]} 34. Nc4 {[%clk 0:00:05]}  cxb4 {[%clk 0:00:03]} 35. axb4 {[%clk 0:00:06]}  Rfc8 {[%clk 0:00:04]} 36. Be3 {[%clk 0:00:04]}  b5 {[%clk 0:00:04]} 37. Na5 {[%clk 0:00:04]}  Rxc1 {[%clk 0:00:04]} 38. Bxc1 {[%clk 0:00:05]}  Bxb4 {[%clk 0:00:05]} 39. Nc6 {[%clk 0:00:05]}  Rc8 {[%clk 0:00:05]} 40. Nxb4 {[%clk 0:00:06]}  Rxc1 {[%clk 0:00:06]} 41. Nxa6 {[%clk 0:00:07]}  Rc4 {[%clk 0:00:06]} 42. g3 {[%clk 0:00:07]}  b4 {[%clk 0:00:06]} 43. f4 {[%clk 0:00:07]}  b3 {[%clk 0:00:06]} 44. Kg2 {[%clk 0:00:08]}  b2 {[%clk 0:00:07]} 45. Kf3 {[%clk 0:00:09]}  b1=Q {[%clk 0:00:07]} 46. Ke3 {[%clk 0:00:10]}  Qe4+ {[%clk 0:00:08]} 0-1


[Site "https://www.chess.com"]

[Event "Titled Tuesday Blitz July 25 Early 2023"]
[White "Sankalan Shah"]
[Black "qx4z"]
[WhiteFideId "25600362"]
[WhiteElo "2218"]
[BlackElo "2790"]
[Result "0-1"]
[Round "3"]
[TimeControl "180+2"]
[Date "2023.07.25"]
[WhiteClock "0:00:09"]
[BlackClock "0:00:39"]
[Board "51"]

1. d4 {[%clk 0:02:55]}  Nf6 {[%clk 0:03:00]} 2. c4 {[%clk 0:02:54]}  g6 {[%clk 0:03:00]} 3. Nc3 {[%clk 0:02:53]}  d5 {[%clk 0:03:00]} 4. Nf3 {[%clk 0:02:53]}  Bg7 {[%clk 0:03:00]} 5. Qb3 {[%clk 0:02:53]}  dxc4 {[%clk 0:02:58]} 6. Qxc4 {[%clk 0:02:54]}  O-O {[%clk 0:02:59]} 7. e4 {[%clk 0:02:54]}  Nc6 {[%clk 0:03:00]} 8. Be3 {[%clk 0:02:50]}  Bg4 {[%clk 0:02:50]} 9. Be2 {[%clk 0:02:49]}  Bxf3 {[%clk 0:02:27]} 10. gxf3 {[%clk 0:02:50]}  e5 {[%clk 0:02:25]} 11. d5 {[%clk 0:02:46]}  Nd4 {[%clk 0:02:25]} 12. Bxd4 {[%clk 0:02:40]}  exd4 {[%clk 0:02:26]} 13. Qxd4 {[%clk 0:02:38]}  c6 {[%clk 0:02:27]} 14. Rd1 {[%clk 0:02:26]}  Qa5 {[%clk 0:01:52]} 15. b4 {[%clk 0:02:15]}  Qa3 {[%clk 0:01:36]} 16. e5 {[%clk 0:02:07]}  Nxd5 {[%clk 0:01:33]} 17. Nxd5 {[%clk 0:02:07]}  cxd5 {[%clk 0:01:34]} 18. f4 {[%clk 0:02:07]}  Rfd8 {[%clk 0:01:23]} 19. Rd2 {[%clk 0:01:00]}  Bf8 {[%clk 0:01:21]} 20. O-O {[%clk 0:00:40]}  Bxb4 {[%clk 0:00:57]} 21. Rc2 {[%clk 0:00:20]}  b6 {[%clk 0:00:42]} 22. Rb1 {[%clk 0:00:16]}  Bc5 {[%clk 0:00:41]} 23. Qd3 {[%clk 0:00:17]}  Qa4 {[%clk 0:00:40]} 24. Qb5 {[%clk 0:00:16]}  Qxf4 {[%clk 0:00:40]} 25. Rb3 {[%clk 0:00:09]}  Qxf2+ {[%clk 0:00:39]} 0-1


[Site "https://www.chess.com"]